Cogmind - Beta 11 X10 @@@ ROGUE MODE // 2022.02.15 @ 20:34:58 Player: gammafunk Result: Destroyed by G-47 Trooper with Particle Gun Performance ------------- Evolutions (0) 0 Regions Visited (2) 400 Robots Destroyed (31) 155 Value Destroyed (576) 576 Prototype IDs (0) 0 Alien Tech Used (0) 0 Bonus (0) 0 TOTAL SCORE: 1131 Bonus ------- None Cogmind --------- Core Integrity 0/250 Matter 285/300 Energy 250/250 System Corruption 0% Temperature Cool (18) Movement Treading (240) Ox1 Location -10/Mines Parts ------- > --- POWER (1) -------- Ion Engine > --- PROPULSION (2) --- Light Treads > --- UTILITY (2) ------ Large Storage Unit Core Shielding > --- WEAPON (2) ------- Light Assault Rifle Light Assault Rifle > --- INVENTORY (15) --- Ion Engine Ion Engine Light Ion Engine Aluminum Leg Aluminum Leg Heat Sink Huge Storage Unit Medium Laser Medium Laser Light Assault Rifle Light Assault Rifle Light Assault Rifle Light Assault Rifle Mining Laser Peak State ------------ > --- POWER ------------ Ion Engine > --- PROPULSION ------- Light Treads Light Treads > --- UTILITY ---------- Medium Storage Unit Improved Terrain Scanner > --- WEAPON ----------- Assault Rifle Light Assault Rifle > --- INVENTORY -------- Light Ion Engine Aluminum Leg Aluminum Leg Small Storage Unit Improved Terrain Scanner Medium Laser Light Assault Rifle Mining Laser [Rating: 10] Favorites ----------- Power Ion Engine Engine Ion Engine Propulsion Light Treads Treads Light Treads Utility Large Storage Unit Device Heat Sink Storage Large Storage Unit Protection Core Shielding Weapon Light Assault Rifle Ballistic Gun Light Assault Rifle Special Weapon Mining Laser Build | -11 -10 -10 ------- Run | Scr Mat Min Slots Evolved . | . . . Power . | . . . Propulsion . | . . . Utility . | . . . Weapon . | . . . Parts Attached 26 | 7 16 3 Power 3 | 1 2 . Engine 3 | 1 2 . Core . | . . . Reactor . | . . . Propulsion 3 | 2 1 . Treads 3 | 2 1 . Leg . | . . . Wheel . | . . . Hover . | . . . Flight . | . . . Utility 7 | 2 5 . Device 3 | 1 2 . Storage 3 | 1 2 . Processor . | . . . Hackware . | . . . Protection 1 | . 1 . Artifact . | . . . Weapon 13 | 2 8 3 Energy Gun . | . . . Energy Cannon . | . . . Ballistic Gun 10 | 2 5 3 Ballistic Cannon . | . . . Launcher . | . . . Special Weapon 3 | . 3 . Impact Weapon . | . . . Slashing Weapon . | . . . Piercing Weapon . | . . . Special Melee Weapon . | . . . Unidentified Prototypes . | . . . Parts Lost 3 | . 1 2 Power . | . . . Propulsion 1 | . . 1 Utility 1 | . 1 . Weapon 1 | . . 1 Highest Loss Streak 2 | . 1 2 To Critical Strikes . | . . . Average Slot Usage (%) 99 | . 99 100 Engine 14 | . 14 14 Treads 27 | . 27 28 Device 6 | . 8 . Storage 14 | . 14 14 Protection 7 | . 5 14 Ballistic Gun 27 | . 27 28 Naked Turns . | . . . Heaviest Build 29 | 14 29 29 Greatest Support 40 | 40 40 40 Greatest Overweight (x) . | . . . Average Overweight (x) . | . . . Largest Inventory Capacity 15 | 8 15 15 Average Capacity 13 | 7 13 15 Most Carried 15 | 6 15 15 Average Carried 12 | 3 12 14 Final Capacity 15 | 8 15 15 Final Carried 15 | 6 15 14 Class Distribution -------------------- 100% | Mutant Dominant Class ---------------- Mutant | -10/Materials Mutant | -10/Mines Resources | -11 -10 -10 ----------- Run | Scr Mat Min Matter Collected 751 | 296 341 114 Remotely . | . . . Salvage Created 884 | 135 520 229 Parts 52 | 11 30 11 Haulers Intercepted 2 | . 2 . Recyclers Shooed . | . . . Parts Field Recycled . | . . . Retrieved Matter . | . . . Parts Self-Destructed . | . . . Prevented . | . . . Kills | -11 -10 -10 ------- Run | Scr Mat Min Combat Hostiles Destroyed 20 | . 10 10 Guns 20 | . 10 10 Classes Destroyed 7 | 2 5 . Worker 1 | . 1 . Tunneler 4 | 3 . 1 Hauler 2 | . 2 . Recycler 1 | 1 . . Watcher 3 | . 3 . Swarmer 10 | . 3 7 Grunt 10 | . 7 3 Best Kill Streak 4 | 3 4 3 Combat Bots Only 3 | . 2 3 Max Kills in Single Turn 1 | 1 1 1 Gunslinging . | . . . Exploded . | . . . Melee . | . . . Uniques/NPCs Destroyed . | . . . Combat | -11 -10 -10 -------- Run | Scr Mat Min Damage Taken 936 | . 494 442 Core 254 | . 143 111 Absorbed by Shields . | . . . Redirected to Shielding 23 | . . 23 Regen/Repaired (Parts) 105 | . 105 . Core Remaining (%) 100 | 100 . . Volleys Fired 92 | 7 55 30 Largest 2 | 2 2 2 Hottest 100 | 40 100 40 Shots Fired 178 | 14 105 59 Gun 173 | 14 100 59 Cannon . | . . . Launcher . | . . . Special 5 | . 5 . Kinetic 173 | 14 100 59 Thermal 5 | . 5 . Explosive . | . . . Electromagnetic . | . . . Robot Hit Streak 13 | 9 13 12 Robot Miss Streak 3 | 1 3 2 Penetration Max . | . . . Secondary Targets 1 | . . 1 Max Gunslinging Chain 1 | . . 1 Shots Hit Robots 124 | 10 70 44 Core Hits 54 | 6 28 20 Critical Kills . | . . . Critical Parts Destroyed . | . . . Critical Strikes . | . . . Melee Attacks . | . . . Impact . | . . . Slashing . | . . . Piercing . | . . . Sneak Attacks . | . . . Combat Hostiles . | . . . Follow-up Attacks . | . . . Damage Inflicted 1339 | 123 758 458 Guns 1305 | 120 728 457 Cannons . | . . . Explosions . | . . . Melee . | . . . Ramming 34 | 3 30 1 Kinetic 1305 | 120 728 457 Thermal . | . . . Explosive . | . . . Electromagnetic . | . . . Impact . | . . . Slashing . | . . . Piercing . | . . . Highest Corruption . | . . . Average Corruption . | . . . Corruption Purged . | . . . Corruption Blocked . | . . . Overload Shots . | . . . Overflow Damage . | . . . Projectiles . | . . . Explosions . | . . . Melee . | . . . Knockbacks 2 | . 2 . Impact 2 | . 2 . Kinetic . | . . . Secondary . | . . . Self-Inflicted Damage . | . . . Shots . | . . . Rammed 6 | 1 5 . Targets Rammed 8 | 1 6 1 Kicked . | . . . Crushed 2 | . 1 1 Highest Temperature 21 | . 20 21 Average Temperature 10 | . 11 9 Received Heat Transfer 444 | . 267 177 Siege Activations . | . . . Robots Corrupted . | . . . Combat Hostiles . | . . . Parts Fried . | . . . Impact Corruptions . | . . . Robots Melted . | . . . Combat Hostiles . | . . . Parts Melted . | . . . Heat Transferred . | . . . Parts Sabotaged . | . . . Parts Stolen . | . . . Parts Stripped . | . . . Power Chain Reactions . | . . . Missiles Intercepted . | . . . Alert | -11 -10 -10 ------- Run | Scr Mat Min Peak Influence 288 | 20 243 288 Initial 13 | . 13 3 Average 76 | 7 63 161 Maximum Alert Level 1 | . 1 1 Low Security (%) 92 | 100 98 63 Level 1 7 | . 1 36 Level 2 . | . . . Level 3 . | . . . Level 4 . | . . . Level 5 . | . . . High Security . | . . . Max Security . | . . . Squads Dispatched 2 | . 2 . Investigation . | . . . Extermination . | . . . Reinforcement 2 | . 2 . Assault . | . . . Garrison . | . . . Intercept . | . . . Construction Impeded . | . . . Haulers Reinforced . | . . . Active Scanning Responses . | . . . Cargo Convoy Interrupts . | . . . Stealth | -11 -10 -10 --------- Run | Scr Mat Min Distress Signals 1 | . 1 . Communications Jammed . | . . . Distress Signals . | . . . Times Spotted 38 | . 23 15 Peak Tracking Total 5 | . 3 5 Tactical Retreats 3 | . 1 2 Traps | -11 -10 -10 ------- Run | Scr Mat Min Traps Triggered . | . . . Indirectly . | . . . Trap Hack Attempts . | . . . Triggered . | . . . Disarmed . | . . . Reprogrammed . | . . . Reused . | . . . Traps Extracted . | . . . Installed . | . . . Triggered . | . . . Machines | -11 -10 -10 ---------- Run | Scr Mat Min Machines Disabled 1 | . . 1 Max in Single Turn 1 | . . 1 Machines Sabotaged . | . . . Garrisons Compromised . | . . . Overloaded Fab Kills . | . . . Hacking | -11 -10 -10 --------- Run | Scr Mat Min Machines Accessed 6 | . 6 . Terminals 5 | . 5 . Fabricators . | . . . Repair Stations 1 | . 1 . Recycling Units . | . . . Scanalyzers . | . . . Garrison Access . | . . . Total Hacks 15 | . 15 . Successful 11 | . 11 . Failed 3 | . 3 . Catastrophic . | . . . Database Lockouts 1 | . 1 . Manual 11 | . 11 . Terminals 13 | . 13 . Fabricators . | . . . Repair Stations 2 | . 2 . Recycling Units . | . . . Scanalyzers . | . . . Garrison Access . | . . . Terminal Hacks 7 | . 7 . Robot Analysis 2 | . 2 . Alert Level 1 | . 1 . Unreport Threat 1 | . 1 . Locate Traps 1 | . 1 . Hauler Manifests 1 | . 1 . Registered Components 1 | . 1 . Fabricator Hacks . | . . . Repair Station Hacks 2 | . 2 . Scan Component 1 | . 1 . Repair 1 | . 1 . Recycling Unit Hacks . | . . . Scanalyzer . | . . . Garrison Access Hacks . | . . . Unauthorized Hacks 2 | . 2 . Terminals 2 | . 2 . Botnet 2 | . 2 . Fabricators . | . . . Repair Stations . | . . . Recycling Units . | . . . Scanalyzers . | . . . Garrison Access . | . . . Data Cores Recovered . | . . . Used . | . . . Hacking Detections 6 | . 6 . Full Trace Events . | . . . Feedback Events . | . . . Feedback Blocked . | . . . Robot Schematics Acquired . | . . . Robots Built . | . . . Authchips . | . . . Time . | . . . Total Robot Build Rating . | . . . Part Schematics Acquired . | . . . Parts Built . | . . . Authchips . | . . . Time . | . . . Total Part Build Rating . | . . . Parts Repaired 1 | . 1 . Time 13 | . 13 . Parts Recycled . | . . . Recycled Matter . | . . . Retrieved Matter . | . . . Retrieved Components . | . . . Parts Scanalyzed . | . . . Part Schematics Acquired . | . . . Parts Damaged . | . . . Bothacking | -11 -10 -10 ------------ Run | Scr Mat Min Used RIF Installer . | . . . Robots Hacked . | . . . Non-combat . | . . . Combat . | . . . Robot Hacks Applied . | . . . Relay Couplers Released . | . . . Fabnet Peak Effective % . | . . . Robots Rewired . | . . . Allies Hacked . | . . . Hacks Repelled . | . . . Allies | -11 -10 -10 -------- Run | Scr Mat Min Total Allies . | . . . Largest Group . | . . . Highest-Rated Group . | . . . Highest-Rated Ally . | . . . Total Orders . | . . . Ally Attacks . | . . . Total Damage . | . . . Kills . | . . . Allies Corrupted . | . . . Allies Melted . | . . . Intel | -11 -10 -10 ------- Run | Scr Mat Min Robot Analysis Total 2 | . 2 . Derelict Logs Recovered . | . . . Drone Launches . | . . . Drone Recoveries . | . . . Exploration | -11 -10 -10 ------------- Run | Scr Mat Min Turns Passed 1937 | 142 1458 337 Spaces Moved 968 | 68 754 146 Core 3 | 3 . . Treads 965 | 65 754 146 Legs . | . . . Wheels . | . . . Hover . | . . . Flight . | . . . Fastest Speed 50 | 50 160 160 Average Speed 159 | 155 160 160 Slowest Speed 160 | 160 160 160 Overloaded Moves . | . . . Propulsion Burnouts . | . . . Robots Hopped . | . . . Cave-ins Triggered . | . . . Exploration Rate (%) 48 | 5 93 47 Regions Visited 2 Branch Regions 1 Pre-discovered Areas . | . . . Known Exits Taken . | . . . Unknown Exits Taken 2 | 1 1 . Scrap Searched 1 | . . 1 Spaces Dug 5 | . 5 . Terrain Destroyed 5 | . 5 . Melee . | . . . Projectile 5 | . 5 . AOE . | . . . Terrain Rammed . | . . . Walls Destroyed . | . . . Machines Disabled . | . . . Actions | -11 -10 -10 --------- Run | Scr Mat Min Total 1178 | 88 892 198 Wait 69 | . 55 14 Move 966 | 67 753 146 Hop . | . . . Pick Up 11 | 6 4 1 Fast Attach 10 | 7 3 . Attach 2 | . 1 1 Detach 1 | . 1 . Swap 14 | . 12 2 Drop 5 | . 2 3 Fire 92 | 7 55 30 Melee . | . . . Ram . | . . . Kick . | . . . Crush 8 | 1 6 1 Escape Stasis . | . . . Rewire . | . . . Trap . | . . . Miscellaneous . | . . . Route ------- -11/Scrapyard -10/Materials (discovered 5 exits: [*Mat x3] / [*Min x2]) -10/Mines History --------- Turn | Location | Event 3 | -11/Scrapyard | Discovered new exit (range 16) 143 | -11/Scrapyard | Entered Materials 318 | -10/Materials | Build established: Mutant 433 | -10/Materials | Discovered new exit (range 16) 598 | -10/Materials | Discovered new exit (range 3) 726 | -10/Materials | Core integrity fell below 50% 873 | -10/Materials | Discovered new exit (range 11) 1082 | -10/Materials | Central database locked down 1170 | -10/Materials | Discovered new exit (range 5) 1373 | -10/Materials | Repaired Lgt. Treads 1481 | -10/Materials | Discovered new exit (range 10) 1601 | -10/Materials | Entered Mines 1703 | -10/Mines | Core integrity fell below 20% 1938 | -10/Mines | Destroyed by G-47 Trooper with Particle Gun Last Messages --------------- 01653_ Searching scrap... 01653_ Found Mining Laser. 01653_ Found 23 Matter. 01695_ G-47 Trooper destroyed. 01706_ G-34 Mercenary destroyed. 01709_ Acquired 44 matter. 01749_ K-01 Serf collects debris. 01808_ S-10 Pest destroyed. 01816_ Acquired 12 matter. 01826_ Dropped Lgt. Assault Rifle. 01827_ Acquired 7 matter. 01829_ Acquired 3 matter. 01837_ K-01 Serf collects debris. 01854_ S-10 Pest destroyed. 01862_ Acquired 4 matter. 01902_ S-10 Pest destroyed. 01912_ Assault Rifle destroyed. 01913_ G-34 Mercenary destroyed. 01918_ Acquired 10 matter. 01932_ Lgt. Treads destroyed. Map ----- +----------------------------------------------------+ | #???????????????# ??????????????????????? | | #???????????????# #?????????????????????? | | ??# ##??????????????# ##???????????????????? | | ??# ##?????????????? #?????######???????? | | ??# ###????????????? ##??# ??????##? | | ??## ###????????????? ### ?????? #? | | ???### ##?????????????# ?????? #? | | ?????## ##?????????????# #????## #?? | | ??????# ## ##????????????# #????# #?? | | ??????# ### #????????????# ###### #?? | | ??????# ### #######?????## #?? | | ??????# ## #????## #?? | | ??????# # [###### ### ## #? | | ??????# ## ####= % ##?# #???# # | | ??????# ### #?######### ##??# #??????? | | ??????# #?## #?????????## ##???#=#?????????? | | ????### #??## #?????????####????#%#?????????? | | ????# ##### #?????????????????#*########??? | | ????# #????????????????# | | ????# #### ### #????????????????# ########??? | | ????# #??# #?## ##????????????????# #?????????? | | ????# #??# #???####??????############ #?????????? | | ????# #??# #?????????????# #?????????? | | ?#### #??# #?????????????# ########## #?????????? | | ## #??# #??????????#### #????????# #?????????? | | #### #??????????#%@s #????????# #?????????? | | #??????????#g####????????# #?????????? | | ### #### #??????????#[#???????????# #?????????? | | ??## #?? ????????? ???????????# #?????????? | | ???# ???????# ???????????# #?????????? | | ??# #??????# ??????????? ??????????? | | ?# ##??????# ??????????? ??????????? | | # ###???????# ??????????#??????????? | | ##?????????# """?????????????????????? | | #??????????# """ ????????????????????? | | ??????????# """ ????????????????????? | | ?????????# ?? ???????????????????? | | ### ????????# ??? ???????????????????? | | ??## #????????###????????????????????????? | | ???# #????????????????????????????????????? | | ???## ##??????????????????????????????????????? | | ?????# #????????????????????????????????????????? | | ?????????????????????????????????????????????????? | | ?????????????????????????????????????????????????? | | ?????????????????????????????????????????????????? | | ?????????????????????????????????????????????????? | | ?????????????????????????????????????????????????? | | ?????????????????????????????????????????????????? | | ?????????????????????????????????????????????????? | | ?????????????????????????????????????????????????? | +----------------------------------------------------+ Best States ------------- Heat Dissipation 35 Energy Generation 10 Energy Capacity 250 Matter Stores 300 Matter Capacity 300 Sight Range 16 Terrain Scan Range 16 Terrain Scan Density 10 Core Shielding 20 Evasion (%) 40 Recoil Reduction 2 Item Schematics ----------------- None Robot Schematics ------------------ None Fabricated ------------ Nothing Alien Tech Used ----------------- None Achievements -------------- None Challenges ------------ None Game ------ Seed MolecularFlightSubcomponent Manual? 0 Play Time 00:11:48 Cumulative 346.6 hours Start 2022.02.15 @ 20:24:36 End 2022.02.15 @ 20:34:58 Sessions 1 Manual Loads 0 Difficulty Rogue Special Mode None Game No. 150 Rogue 150 Adventurer 0 Explorer 0 Win Type - Total 6 Types 1/2/1/0/0/2/0/0/0 Lore% 60 Gallery% 62 Achievement% 59 Wizard Run 0 Options --------- ASCII 0 Keyboard 1 Movement Vi Keybinds 0 Fullscreen 2 Font 12/Smallcaps Map View 60x54 Tactical HUD 1 Map Filters NONE Filters NONE Steam 1 RUN: 85bdfb46-7a0f-41ac-9c8b-ac00ddf9e9b7